[Event "Early-Titled-Tuesday-Blitz-October-10-2023"]
[Site "Chess.com"]
[Date "2023.10.10"]
[Round "4"]
[White "AnaKuchava"]
[Black "YouShallNotPass001"]
[Result "1/2-1/2"]
[WhiteElo "2247"]
[BlackElo "2388"]
[TimeControl "180+1"]
[EndTime "8:37:24 PDT"]
[Termination "Game drawn by repetition"]

1. d4 {[%clk 0:03:00.9]} 1... Nf6 {[%clk 0:02:59.4]} 2. Nf3 {[%clk 0:02:58.7]}
2... e6 {[%clk 0:03:00.3]} 3. c4 {[%clk 0:02:58.5]} 3... d5 {[%clk 0:03:00.9]}
4. Nc3 {[%clk 0:02:57.8]} 4... Bb4 {[%clk 0:03:00.3]} 5. Qa4+ {[%clk 0:02:57.4]}
5... Nc6 {[%clk 0:02:59.6]} 6. e3 {[%clk 0:02:56.8]} 6... O-O {[%clk 0:02:59.5]}
7. Bd3 {[%clk 0:02:54.2]} 7... Qe7 {[%clk 0:02:55.6]} 8. O-O {[%clk 0:02:50.9]}
8... dxc4 {[%clk 0:02:52.6]} 9. Bxc4 {[%clk 0:02:50.6]} 9... a6 {[%clk
0:02:52.6]} 10. Qc2 {[%clk 0:02:48.3]} 10... Bd6 {[%clk 0:02:51.1]} 11. e4
{[%clk 0:02:45]} 11... e5 {[%clk 0:02:50.9]} 12. d5 {[%clk 0:02:45.3]} 12... Nd4
{[%clk 0:02:47.7]} 13. Qd3 {[%clk 0:02:42.4]} 13... c5 {[%clk 0:02:43.2]} 14.
dxc6 {[%clk 0:02:40]} 14... bxc6 {[%clk 0:02:36.2]} 15. Nxd4 {[%clk 0:02:36.4]}
15... exd4 {[%clk 0:02:37.1]} 16. Qxd4 {[%clk 0:02:37]} 16... Be5 {[%clk
0:02:35.2]} 17. Qd3 {[%clk 0:02:13.4]} 17... Rd8 {[%clk 0:02:32]} 18. Qe2 {[%clk
0:02:13.3]} 18... Ng4 {[%clk 0:01:40.9]} 19. h3 {[%clk 0:01:58.3]} 19... Nh2
{[%clk 0:00:59]} 20. Rd1 {[%clk 0:01:36.3]} 20... Bxh3 {[%clk 0:00:46.4]} 21.
gxh3 {[%clk 0:01:32.4]} 21... Rxd1+ {[%clk 0:00:36.1]} 22. Qxd1 {[%clk
0:01:09.9]} 22... Qh4 {[%clk 0:00:35.6]} 23. f4 {[%clk 0:00:26.9]} 23... Rd8
{[%clk 0:00:18.7]} 24. Qe2 {[%clk 0:00:25.1]} 24... Qg3+ {[%clk 0:00:18.6]} 25.
Qg2 {[%clk 0:00:23.6]} 25... Nf3+ {[%clk 0:00:17.5]} 26. Kh1 {[%clk 0:00:17.7]}
26... Qe1+ {[%clk 0:00:17.9]} 27. Qf1 {[%clk 0:00:16.5]} 27... Qg3 {[%clk
0:00:17.9]} 28. Qg2 {[%clk 0:00:12.6]} 28... Qe1+ {[%clk 0:00:16.8]} 29. Qf1
{[%clk 0:00:12.6]} 29... Qg3 {[%clk 0:00:16.4]} 30. Qg2 {[%clk 0:00:12.6]}
1/2-1/2

[Event "Early-Titled-Tuesday-Blitz-October-10-2023"]
[Site "Chess.com"]
[Date "2023.10.10"]
[Round "4"]
[White "j2806"]
[Black "LeoWin2012"]
[Result "0-1"]
[WhiteElo "2148"]
[BlackElo "2323"]
[TimeControl "180+1"]
[EndTime "8:37:27 PDT"]
[Termination "LeoWin2012 won on time"]

1. e4 {[%clk 0:03:00.9]} 1... e5 {[%clk 0:02:58.4]} 2. Nf3 {[%clk 0:03:01]} 2...
Nc6 {[%clk 0:02:58.2]} 3. Bb5 {[%clk 0:02:59.2]} 3... a6 {[%clk 0:02:56.6]} 4.
Ba4 {[%clk 0:02:58.3]} 4... b5 {[%clk 0:02:56.3]} 5. Bb3 {[%clk 0:02:58.3]} 5...
Nf6 {[%clk 0:02:56.2]} 6. d3 {[%clk 0:02:58]} 6... Bc5 {[%clk 0:02:56.1]} 7. c3
{[%clk 0:02:57]} 7... O-O {[%clk 0:02:55.5]} 8. O-O {[%clk 0:02:57.6]} 8... d6
{[%clk 0:02:53.3]} 9. h3 {[%clk 0:02:57.7]} 9... Be6 {[%clk 0:02:47.8]} 10. Bc2
{[%clk 0:02:55.4]} 10... h6 {[%clk 0:02:45]} 11. d4 {[%clk 0:02:54.4]} 11...
exd4 {[%clk 0:02:40.8]} 12. cxd4 {[%clk 0:02:53.6]} 12... Bc4 {[%clk 0:02:40]}
13. Re1 {[%clk 0:02:50.1]} 13... Bb4 {[%clk 0:02:35.1]} 14. Bd2 {[%clk
0:02:35.4]} 14... Bxd2 {[%clk 0:02:31.2]} 15. Nbxd2 {[%clk 0:02:35.1]} 15... d5
{[%clk 0:02:11.2]} 16. e5 {[%clk 0:02:33.7]} 16... Ne4 {[%clk 0:02:07.8]} 17. b3
{[%clk 0:02:21.1]} 17... Nc3 {[%clk 0:02:07.2]} 18. Qc1 {[%clk 0:01:58.4]} 18...
Ne2+ {[%clk 0:02:06.8]} 19. Rxe2 {[%clk 0:01:58.1]} 19... Bxe2 {[%clk
0:02:07.7]} 20. Bf5 {[%clk 0:01:28.5]} 20... Bxf3 {[%clk 0:02:05.9]} 21. Qxc6
{[%clk 0:01:26.4]} 21... Bh5 {[%clk 0:01:53.9]} 22. g4 {[%clk 0:01:15.5]} 22...
Bg6 {[%clk 0:01:53.2]} 23. Bxg6 {[%clk 0:01:14.6]} 23... fxg6 {[%clk 0:01:54.1]}
24. Qxg6 {[%clk 0:01:12.8]} 24... Qe7 {[%clk 0:01:48.4]} 25. Rf1 {[%clk
0:01:06.3]} 25... c5 {[%clk 0:01:44.7]} 26. Qc6 {[%clk 0:00:54.2]} 26... Rfd8
{[%clk 0:01:31.4]} 27. dxc5 {[%clk 0:00:43.5]} 27... Qxe5 {[%clk 0:01:21.9]} 28.
Nf3 {[%clk 0:00:38.2]} 28... Qf4 {[%clk 0:01:17.8]} 29. Kg2 {[%clk 0:00:33.7]}
29... d4 {[%clk 0:01:06.7]} 30. Rd1 {[%clk 0:00:23.3]} 30... d3 {[%clk
0:01:01.4]} 31. Rxd3 {[%clk 0:00:19.2]} 31... Rxd3 {[%clk 0:00:55]} 32. Qxa8+
{[%clk 0:00:18.9]} 32... Kh7 {[%clk 0:00:54.4]} 33. Qb7 {[%clk 0:00:15]} 33...
Rc3 {[%clk 0:00:51.7]} 34. Ng1 {[%clk 0:00:09.8]} 34... Rxc5 {[%clk 0:00:46.6]}
35. Qxa6 {[%clk 0:00:06.4]} 35... Qe4+ {[%clk 0:00:46.5]} 36. Kh2 {[%clk
0:00:01.7]} 36... Rc2 {[%clk 0:00:43.8]} 0-1

[Event "Early-Titled-Tuesday-Blitz-October-10-2023"]
[Site "Chess.com"]
[Date "2023.10.10"]
[Round "4"]
[White "Xqswdc"]
[Black "bazar-wokzal"]
[Result "0-1"]
[WhiteElo "2333"]
[BlackElo "2558"]
[TimeControl "180+1"]
[EndTime "8:37:31 PDT"]
[Termination "bazar-wokzal won on time"]

1. e4 {[%clk 0:03:00.9]} 1... Nc6 {[%clk 0:02:59.5]} 2. Nf3 {[%clk 0:02:57.1]}
2... d5 {[%clk 0:02:59.1]} 3. exd5 {[%clk 0:02:56.5]} 3... Qxd5 {[%clk
0:02:58.5]} 4. Nc3 {[%clk 0:02:56.8]} 4... Qa5 {[%clk 0:02:58.5]} 5. d4 {[%clk
0:02:56.9]} 5... Bg4 {[%clk 0:02:57.9]} 6. Bb5 {[%clk 0:02:46.1]} 6... O-O-O
{[%clk 0:02:57]} 7. Bxc6 {[%clk 0:02:41]} 7... bxc6 {[%clk 0:02:57.9]} 8. h3
{[%clk 0:02:37]} 8... Qh5 {[%clk 0:02:56.4]} 9. Be3 {[%clk 0:02:33]} 9... e5
{[%clk 0:02:52.8]} 10. Qd3 {[%clk 0:02:05.3]} 10... Bxf3 {[%clk 0:02:52.6]} 11.
gxf3 {[%clk 0:02:01]} 11... Qxf3 {[%clk 0:02:52.1]} 12. Rg1 {[%clk 0:01:04.6]}
12... exd4 {[%clk 0:02:44.3]} 13. Qa6+ {[%clk 0:01:01.3]} 13... Kb8 {[%clk
0:02:38.6]} 14. Rg3 {[%clk 0:00:56.7]} 14... Qh1+ {[%clk 0:02:31.5]} 15. Ke2
{[%clk 0:00:56.7]} 15... Qxa1 {[%clk 0:02:31.3]} 16. Nb5 {[%clk 0:00:36.1]}
16... cxb5 {[%clk 0:01:46.1]} 17. Qxb5+ {[%clk 0:00:36.2]} 17... Kc8 {[%clk
0:01:46.2]} 18. Qa6+ {[%clk 0:00:36.4]} 18... Kd7 {[%clk 0:01:46]} 19. Qb5+
{[%clk 0:00:35.6]} 19... c6 {[%clk 0:01:28.5]} 20. Qb7+ {[%clk 0:00:29.8]} 20...
Ke6 {[%clk 0:01:27.6]} 21. Qxc6+ {[%clk 0:00:28.5]} 21... Bd6 {[%clk 0:01:26.9]}
22. Qe4+ {[%clk 0:00:20.1]} 22... Be5 {[%clk 0:01:21]} 23. f4 {[%clk 0:00:15.3]}
23... d3+ {[%clk 0:01:16.1]} 24. Kf2 {[%clk 0:00:10.9]} 24... Qxb2 {[%clk
0:01:10]} 25. Qc4+ {[%clk 0:00:08.9]} 25... Ke7 {[%clk 0:00:54.5]} 26. Bc5+
{[%clk 0:00:08.6]} 26... Ke8 {[%clk 0:00:48]} 27. Qa4+ {[%clk 0:00:07.9]} 27...
Rd7 {[%clk 0:00:47.3]} 28. Rxd3 {[%clk 0:00:08.8]} 28... Nf6 {[%clk 0:00:42.9]}
29. fxe5 {[%clk 0:00:07.6]} 29... Ne4+ {[%clk 0:00:26.8]} 30. Qxe4 {[%clk
0:00:03.2]} 30... Qxc2+ {[%clk 0:00:26.9]} 31. Kg1 {[%clk 0:00:01.3]} 31...
Qxc5+ {[%clk 0:00:26.8]} 0-1

[Event "Early-Titled-Tuesday-Blitz-October-10-2023"]
[Site "Chess.com"]
[Date "2023.10.10"]
[Round "4"]
[White "TigrVShlyape"]
[Black "Korchmar_Vasiliy"]
[Result "0-1"]
[WhiteElo "2926"]
[BlackElo "2735"]
[TimeControl "180+1"]
[EndTime "8:37:33 PDT"]
[Termination "Korchmar_Vasiliy won by resignation"]

1. d4 {[%clk 0:03:00.9]} 1... Nf6 {[%clk 0:02:59.8]} 2. Bf4 {[%clk 0:03:00.1]}
2... d5 {[%clk 0:02:59.9]} 3. e3 {[%clk 0:02:59.9]} 3... c5 {[%clk 0:03:00.1]}
4. c3 {[%clk 0:02:59.9]} 4... Nc6 {[%clk 0:02:59.6]} 5. Nd2 {[%clk 0:03:00]}
5... Bf5 {[%clk 0:02:44.7]} 6. Ngf3 {[%clk 0:02:56.1]} 6... Qb6 {[%clk
0:02:17.4]} 7. dxc5 {[%clk 0:02:49.8]} 7... Qxb2 {[%clk 0:02:14.5]} 8. Nd4
{[%clk 0:02:48.4]} 8... e5 {[%clk 0:01:48.7]} 9. Nxf5 {[%clk 0:01:44.4]} 9...
exf4 {[%clk 0:01:47.6]} 10. Rb1 {[%clk 0:01:22.6]} 10... Qxc3 {[%clk 0:01:47.3]}
11. exf4 {[%clk 0:01:13]} 11... Bxc5 {[%clk 0:01:37.7]} 12. Rc1 {[%clk
0:01:08.4]} 12... Qa5 {[%clk 0:01:31.5]} 13. Be2 {[%clk 0:01:06.8]} 13... Ne4
{[%clk 0:01:06.8]} 14. Rxc5 {[%clk 0:00:28]} 14... Qxc5 {[%clk 0:01:06]} 15. O-O
{[%clk 0:00:24.3]} 15... Nxd2 {[%clk 0:00:53.1]} 16. Qxd2 {[%clk 0:00:24]} 16...
O-O {[%clk 0:00:53]} 17. Rc1 {[%clk 0:00:23.6]} 17... Qb4 {[%clk 0:00:47.7]} 18.
Qxd5 {[%clk 0:00:17.3]} 18... Qxf4 {[%clk 0:00:44.2]} 19. Rb1 {[%clk 0:00:16.8]}
19... Rad8 {[%clk 0:00:40.7]} 20. Qf3 {[%clk 0:00:14]} 20... Qxf3 {[%clk
0:00:38]} 21. Bxf3 {[%clk 0:00:14.9]} 21... g6 {[%clk 0:00:26.4]} 22. Ne3 {[%clk
0:00:14.4]} 22... Rd7 {[%clk 0:00:18.1]} 23. Bxc6 {[%clk 0:00:12.9]} 23... bxc6
{[%clk 0:00:17.8]} 24. Rc1 {[%clk 0:00:13.6]} 24... Rc8 {[%clk 0:00:16.9]} 25.
Rc5 {[%clk 0:00:13.5]} 25... Rd2 {[%clk 0:00:15.4]} 26. Ra5 {[%clk 0:00:11.5]}
26... c5 {[%clk 0:00:13.8]} 27. Kf1 {[%clk 0:00:03.9]} 27... c4 {[%clk
0:00:13.8]} 28. Ke1 {[%clk 0:00:04.5]} 28... c3 {[%clk 0:00:14.4]} 0-1

[Event "Early-Titled-Tuesday-Blitz-October-10-2023"]
[Site "Chess.com"]
[Date "2023.10.10"]
[Round "4"]
[White "ilm2034"]
[Black "alexrustemov"]
[Result "0-1"]
[WhiteElo "2590"]
[BlackElo "2863"]
[TimeControl "180+1"]
[EndTime "8:37:36 PDT"]
[Termination "alexrustemov won by resignation"]

1. e4 {[%clk 0:02:53.4]} 1... e6 {[%clk 0:03:00]} 2. d4 {[%clk 0:02:51.5]} 2...
d5 {[%clk 0:03:00.4]} 3. Nd2 {[%clk 0:02:49.5]} 3... dxe4 {[%clk 0:03:00.8]} 4.
Nxe4 {[%clk 0:02:49.6]} 4... Bd7 {[%clk 0:03:01.4]} 5. Bd3 {[%clk 0:02:48.4]}
5... Bc6 {[%clk 0:03:01.8]} 6. Nf3 {[%clk 0:02:48.6]} 6... Nd7 {[%clk
0:03:02.2]} 7. O-O {[%clk 0:02:48.7]} 7... Ngf6 {[%clk 0:03:02.7]} 8. Bg5 {[%clk
0:02:46.5]} 8... Be7 {[%clk 0:03:02.7]} 9. Nxf6+ {[%clk 0:02:46.1]} 9... Bxf6
{[%clk 0:03:02.6]} 10. Bxf6 {[%clk 0:02:46.3]} 10... Qxf6 {[%clk 0:03:02.9]} 11.
c3 {[%clk 0:02:46]} 11... Bxf3 {[%clk 0:03:02.4]} 12. Qxf3 {[%clk 0:02:46.3]}
12... Qxf3 {[%clk 0:03:02.1]} 13. gxf3 {[%clk 0:02:47.2]} 13... g6 {[%clk
0:02:59.1]} 14. Kg2 {[%clk 0:02:46.7]} 14... Nf6 {[%clk 0:02:56.9]} 15. a4
{[%clk 0:02:46.4]} 15... a5 {[%clk 0:02:56.1]} 16. Rfe1 {[%clk 0:02:45.2]} 16...
c6 {[%clk 0:02:51.3]} 17. Re5 {[%clk 0:02:44.7]} 17... Kd7 {[%clk 0:02:46.5]}
18. h4 {[%clk 0:02:44.2]} 18... Kc7 {[%clk 0:02:44.6]} 19. Rae1 {[%clk
0:02:42.4]} 19... Rhd8 {[%clk 0:02:43.4]} 20. Bc2 {[%clk 0:02:39.1]} 20... Rd5
{[%clk 0:02:30.5]} 21. Kg3 {[%clk 0:02:31.2]} 21... Nh5+ {[%clk 0:02:28.5]} 22.
Kg4 {[%clk 0:02:31.3]} 22... h6 {[%clk 0:02:25.3]} 23. Bb3 {[%clk 0:02:23.7]}
23... Rd6 {[%clk 0:02:20]} 24. Rg1 {[%clk 0:02:14.4]} 24... b6 {[%clk
0:02:15.7]} 25. f4 {[%clk 0:01:54.1]} 25... Rad8 {[%clk 0:02:10.6]} 26. Rxh5
{[%clk 0:01:41.3]} 26... gxh5+ {[%clk 0:02:10]} 27. Kxh5 {[%clk 0:01:42.2]}
27... c5 {[%clk 0:02:07.2]} 28. dxc5 {[%clk 0:01:39.5]} 28... Rd2 {[%clk
0:02:00.3]} 29. Rg7 {[%clk 0:01:40.1]} 29... R8d7 {[%clk 0:01:59.3]} 30. Kxh6
{[%clk 0:01:29]} 30... Rxb2 {[%clk 0:01:48.5]} 31. cxb6+ {[%clk 0:01:29.2]}
31... Kxb6 {[%clk 0:01:48.7]} 32. Bc4 {[%clk 0:01:20]} 32... Rxf2 {[%clk
0:01:47.9]} 33. Kg5 {[%clk 0:01:12.4]} 33... Rc7 {[%clk 0:01:19.7]} 34. Bb5
{[%clk 0:00:59.4]} 34... Rc5+ {[%clk 0:01:19.3]} 35. Kf6 {[%clk 0:00:47.5]}
35... Rxf4+ {[%clk 0:01:17.9]} 36. Ke7 {[%clk 0:00:48.2]} 36... Rxh4 {[%clk
0:01:15.2]} 37. Rg8 {[%clk 0:00:38.5]} 37... Rc7+ {[%clk 0:01:08.9]} 38. Kd6
{[%clk 0:00:38.2]} 38... Rh2 {[%clk 0:01:01.1]} 39. Rb8+ {[%clk 0:00:36.6]}
39... Rb7 {[%clk 0:01:01.4]} 40. Ra8 {[%clk 0:00:35.6]} 40... Rd2+ {[%clk
0:01:01.6]} 41. Ke5 {[%clk 0:00:33.8]} 41... Rd5+ {[%clk 0:01:01.4]} 42. Kf6
{[%clk 0:00:33.4]} 42... Rxb5 {[%clk 0:01:01.8]} 43. axb5 {[%clk 0:00:33.5]}
43... Kxb5 {[%clk 0:01:02.4]} 44. Ke5 {[%clk 0:00:28]} 44... a4 {[%clk
0:00:56.7]} 45. Kd6 {[%clk 0:00:24.4]} 45... Rb6+ {[%clk 0:00:56.8]} 46. Ke7
{[%clk 0:00:22.9]} 46... Ra6 {[%clk 0:00:57.2]} 47. Rb8+ {[%clk 0:00:22.8]}
47... Kc4 {[%clk 0:00:57.3]} 48. Rc8+ {[%clk 0:00:20.9]} 48... Kb3 {[%clk
0:00:57.2]} 49. Kxf7 {[%clk 0:00:21.2]} 49... a3 {[%clk 0:00:56.9]} 50. Rb8+
{[%clk 0:00:20.2]} 50... Kc2 {[%clk 0:00:55]} 51. Rh8 {[%clk 0:00:20.6]} 51...
a2 {[%clk 0:00:54.9]} 52. Rh2+ {[%clk 0:00:21.5]} 52... Kb3 {[%clk 0:00:54.3]}
53. Rh1 {[%clk 0:00:20.2]} 53... a1=Q {[%clk 0:00:53.9]} 54. Rxa1 {[%clk
0:00:20.6]} 54... Rxa1 {[%clk 0:00:54.2]} 55. Kxe6 {[%clk 0:00:21.2]} 55... Kxc3
{[%clk 0:00:54.2]} 0-1

[Event "Early-Titled-Tuesday-Blitz-October-10-2023"]
[Site "Chess.com"]
[Date "2023.10.10"]
[Round "4"]
[White "Masterbeaterr"]
[Black "HeinichessPY"]
[Result "1-0"]
[WhiteElo "2472"]
[BlackElo "2212"]
[TimeControl "180+1"]
[EndTime "8:37:36 PDT"]
[Termination "Masterbeaterr won by resignation"]

1. d4 {[%clk 0:02:59.8]} 1... d5 {[%clk 0:02:58.6]} 2. c4 {[%clk 0:02:59.7]}
2... e6 {[%clk 0:02:58.6]} 3. Nc3 {[%clk 0:02:59.1]} 3... Nf6 {[%clk 0:02:58.7]}
4. cxd5 {[%clk 0:02:57.8]} 4... exd5 {[%clk 0:02:57.1]} 5. Bg5 {[%clk
0:02:57.6]} 5... Be7 {[%clk 0:02:57.2]} 6. e3 {[%clk 0:02:58.2]} 6... O-O {[%clk
0:02:57.2]} 7. Bd3 {[%clk 0:02:57.7]} 7... c6 {[%clk 0:02:57.2]} 8. Qc2 {[%clk
0:02:57.8]} 8... h6 {[%clk 0:02:57.1]} 9. Bh4 {[%clk 0:02:57.4]} 9... Nbd7
{[%clk 0:02:55.5]} 10. Nge2 {[%clk 0:02:56.8]} 10... Re8 {[%clk 0:02:55.2]} 11.
O-O {[%clk 0:02:55.9]} 11... Nf8 {[%clk 0:02:46.5]} 12. f3 {[%clk 0:02:43.3]}
12... b6 {[%clk 0:02:37.1]} 13. Bf2 {[%clk 0:02:40.2]} 13... Bb7 {[%clk
0:02:37.1]} 14. Rae1 {[%clk 0:02:38.4]} 14... Rc8 {[%clk 0:02:37.1]} 15. e4
{[%clk 0:02:37.5]} 15... c5 {[%clk 0:02:32.3]} 16. e5 {[%clk 0:02:28.6]} 16...
N6h7 {[%clk 0:02:17.5]} 17. f4 {[%clk 0:02:23.6]} 17... c4 {[%clk 0:01:53.5]}
18. Bf5 {[%clk 0:02:22.8]} 18... g6 {[%clk 0:01:53.2]} 19. Bxc8 {[%clk
0:02:21.1]} 19... Bxc8 {[%clk 0:01:51.6]} 20. Ng3 {[%clk 0:02:18.7]} 20... h5
{[%clk 0:01:48.3]} 21. f5 {[%clk 0:02:17.1]} 21... h4 {[%clk 0:01:48.7]} 22.
fxg6 {[%clk 0:02:17.2]} 22... hxg3 {[%clk 0:01:46.2]} 23. gxh7+ {[%clk
0:02:16.5]} 23... Nxh7 {[%clk 0:01:45.2]} 24. Bxg3 {[%clk 0:02:16.5]} 24... Ng5
{[%clk 0:01:40.7]} 25. h4 {[%clk 0:02:06]} 25... Ne6 {[%clk 0:01:38.4]} 26. Qf2
{[%clk 0:01:55.8]} 26... Rf8 {[%clk 0:01:37.5]} 27. Ne2 {[%clk 0:01:51.3]} 27...
c3 {[%clk 0:01:32.5]} 28. bxc3 {[%clk 0:01:49.8]} 28... Ba6 {[%clk 0:01:32.8]}
29. Qf5 {[%clk 0:01:39.4]} 29... Qc7 {[%clk 0:01:30.4]} 30. Qg4+ {[%clk
0:01:36.7]} 30... Kh7 {[%clk 0:01:30.4]} 31. Rf6 {[%clk 0:01:23.7]} 31... Bxe2
{[%clk 0:01:22.2]} 32. Rxe2 {[%clk 0:01:22.3]} 32... Qxc3 {[%clk 0:01:22.5]} 33.
Qh5+ {[%clk 0:01:13.9]} 33... Kg7 {[%clk 0:01:17]} 34. Qh6+ {[%clk 0:01:10.3]}
34... Kg8 {[%clk 0:01:16.7]} 35. Bf2 {[%clk 0:00:57.6]} 35... Rc8 {[%clk
0:01:07.2]} 36. Re3 {[%clk 0:00:49.4]} 36... Ng7 {[%clk 0:00:55.9]} 37. Rxc3
{[%clk 0:00:47.5]} 37... Rxc3 {[%clk 0:00:53.4]} 38. Rf3 {[%clk 0:00:43.8]}
38... Rc2 {[%clk 0:00:35.6]} 39. Rg3 {[%clk 0:00:39.4]} 39... Bf8 {[%clk
0:00:35.3]} 40. Be3 {[%clk 0:00:37.7]} 40... Rxa2 {[%clk 0:00:27.9]} 41. Bg5
{[%clk 0:00:35.8]} 1-0

[Event "Early-Titled-Tuesday-Blitz-October-10-2023"]
[Site "Chess.com"]
[Date "2023.10.10"]
[Round "4"]
[White "Alex_Sahakyan2006"]
[Black "Beca95"]
[Result "1-0"]
[WhiteElo "2709"]
[BlackElo "2885"]
[TimeControl "180+1"]
[EndTime "8:37:42 PDT"]
[Termination "Alex_Sahakyan2006 won by checkmate"]

1. d4 {[%clk 0:03:00.9]} 1... Nf6 {[%clk 0:02:59.6]} 2. Nf3 {[%clk 0:02:58.6]}
2... e6 {[%clk 0:03:00]} 3. Bf4 {[%clk 0:02:58.6]} 3... c5 {[%clk 0:03:00.1]} 4.
e3 {[%clk 0:02:57.9]} 4... cxd4 {[%clk 0:03:00.7]} 5. exd4 {[%clk 0:02:58]} 5...
b6 {[%clk 0:03:01.3]} 6. Bd3 {[%clk 0:02:53.3]} 6... Ba6 {[%clk 0:03:01.5]} 7.
O-O {[%clk 0:02:52]} 7... Be7 {[%clk 0:03:00.7]} 8. Re1 {[%clk 0:02:46.1]} 8...
O-O {[%clk 0:03:00]} 9. c3 {[%clk 0:02:46.3]} 9... d6 {[%clk 0:02:55.7]} 10.
Bxa6 {[%clk 0:02:40]} 10... Nxa6 {[%clk 0:02:56.6]} 11. a4 {[%clk 0:02:39.7]}
11... Nc7 {[%clk 0:02:56.8]} 12. Nbd2 {[%clk 0:02:31.3]} 12... a6 {[%clk
0:02:56.7]} 13. Nc4 {[%clk 0:02:19.9]} 13... b5 {[%clk 0:02:49]} 14. axb5 {[%clk
0:02:14.7]} 14... axb5 {[%clk 0:02:49.9]} 15. Rxa8 {[%clk 0:02:15]} 15... Nxa8
{[%clk 0:02:50.8]} 16. Ne3 {[%clk 0:02:15.4]} 16... Nb6 {[%clk 0:02:48.3]} 17.
h3 {[%clk 0:02:15.5]} 17... Nfd5 {[%clk 0:02:46.9]} 18. Nxd5 {[%clk 0:02:10.6]}
18... Nxd5 {[%clk 0:02:47.8]} 19. Bg3 {[%clk 0:02:09.1]} 19... Qa5 {[%clk
0:02:40.5]} 20. Nd2 {[%clk 0:02:02.8]} 20... Rc8 {[%clk 0:02:35.2]} 21. Ne4
{[%clk 0:02:01.7]} 21... Qb6 {[%clk 0:02:35]} 22. Qb3 {[%clk 0:01:59.5]} 22...
h6 {[%clk 0:02:33]} 23. Ra1 {[%clk 0:01:53]} 23... f5 {[%clk 0:02:32.4]} 24. Nd2
{[%clk 0:01:46.6]} 24... f4 {[%clk 0:02:32.7]} 25. Bh2 {[%clk 0:01:42.5]} 25...
g5 {[%clk 0:02:32.7]} 26. Kh1 {[%clk 0:01:41.7]} 26... Kf7 {[%clk 0:02:15.6]}
27. f3 {[%clk 0:01:38.4]} 27... Qc6 {[%clk 0:02:11.7]} 28. Bg1 {[%clk
0:01:35.1]} 28... h5 {[%clk 0:02:06]} 29. Ra5 {[%clk 0:01:09.5]} 29... Rb8
{[%clk 0:02:03.3]} 30. c4 {[%clk 0:01:09.4]} 30... Nc7 {[%clk 0:02:02.8]} 31. d5
{[%clk 0:01:04.7]} 31... exd5 {[%clk 0:02:01.4]} 32. cxb5 {[%clk 0:01:04.1]}
32... Rxb5 {[%clk 0:02:00.6]} 33. Rxb5 {[%clk 0:01:04.7]} 33... Qxb5 {[%clk
0:02:01.1]} 34. Qc2 {[%clk 0:01:05.3]} 34... Ne6 {[%clk 0:01:59.6]} 35. h4
{[%clk 0:00:42.9]} 35... Bf6 {[%clk 0:01:46.2]} 36. Qh7+ {[%clk 0:00:29.5]}
36... Kf8 {[%clk 0:01:43.3]} 37. hxg5 {[%clk 0:00:26.3]} 37... Bxg5 {[%clk
0:01:40.2]} 38. Qf5+ {[%clk 0:00:22.7]} 38... Ke7 {[%clk 0:01:37]} 39. Ne4
{[%clk 0:00:22.2]} 39... Bh4 {[%clk 0:01:20]} 40. Qh7+ {[%clk 0:00:17.3]} 40...
Kd8 {[%clk 0:01:20.2]} 41. Nxd6 {[%clk 0:00:17.8]} 41... Qd7 {[%clk 0:01:18.9]}
42. Bb6+ {[%clk 0:00:17.1]} 42... Nc7 {[%clk 0:01:18.7]} 43. Qg8+ {[%clk
0:00:14.9]} 43... Ke7 {[%clk 0:01:17.1]} 44. Bxc7 {[%clk 0:00:15]} 44... Bf6
{[%clk 0:00:36.2]} 45. Qf7# {[%clk 0:00:13.8]} 1-0

[Event "Early-Titled-Tuesday-Blitz-October-10-2023"]
[Site "Chess.com"]
[Date "2023.10.10"]
[Round "4"]
[White "nitpicker"]
[Black "Krlence"]
[Result "0-1"]
[WhiteElo "2254"]
[BlackElo "2428"]
[TimeControl "180+1"]
[EndTime "8:37:42 PDT"]
[Termination "Krlence won on time"]

1. d4 {[%clk 0:03:00.9]} 1... Nf6 {[%clk 0:02:20.3]} 2. c4 {[%clk 0:03:00.2]}
2... e6 {[%clk 0:02:20.3]} 3. g3 {[%clk 0:02:59.8]} 3... d5 {[%clk 0:02:19.8]}
4. Nf3 {[%clk 0:02:59.3]} 4... dxc4 {[%clk 0:02:20]} 5. Bg2 {[%clk 0:02:58.5]}
5... c5 {[%clk 0:02:20.3]} 6. O-O {[%clk 0:01:45.3]} 6... Nc6 {[%clk 0:02:12.8]}
7. Ne5 {[%clk 0:01:41.2]} 7... Nxe5 {[%clk 0:02:08.7]} 8. dxe5 {[%clk
0:01:40.4]} 8... Qxd1 {[%clk 0:02:09.5]} 9. Rxd1 {[%clk 0:01:39.2]} 9... Nd7
{[%clk 0:02:04.2]} 10. f4 {[%clk 0:01:37.4]} 10... Rb8 {[%clk 0:02:00.6]} 11. a4
{[%clk 0:01:36.5]} 11... b6 {[%clk 0:01:45.7]} 12. Bc6 {[%clk 0:01:34.3]} 12...
f6 {[%clk 0:01:37.6]} 13. Na3 {[%clk 0:01:29.6]} 13... fxe5 {[%clk 0:01:32.7]}
14. Nb5 {[%clk 0:01:24.6]} 14... a6 {[%clk 0:01:20.8]} 15. Nc7+ {[%clk
0:01:24.2]} 15... Ke7 {[%clk 0:01:20.4]} 16. fxe5 {[%clk 0:00:46]} 16... h6
{[%clk 0:01:11.6]} 17. h4 {[%clk 0:00:28]} 17... Nxe5 {[%clk 0:00:57.8]} 18. Bg2
{[%clk 0:00:27.4]} 18... Nf7 {[%clk 0:00:45.8]} 19. Bf4 {[%clk 0:00:24.9]} 19...
e5 {[%clk 0:00:44.8]} 20. Nd5+ {[%clk 0:00:23.7]} 20... Ke8 {[%clk 0:00:42.1]}
21. Be3 {[%clk 0:00:22.6]} 21... Bd6 {[%clk 0:00:37.2]} 22. Nc3 {[%clk
0:00:16.2]} 22... Bb7 {[%clk 0:00:33.3]} 23. Ne4 {[%clk 0:00:14]} 23... Bxe4
{[%clk 0:00:33.6]} 24. Bxe4 {[%clk 0:00:14.2]} 24... Ke7 {[%clk 0:00:34]} 25.
Bg6 {[%clk 0:00:12.8]} 25... Nd8 {[%clk 0:00:31.6]} 26. Rd5 {[%clk 0:00:11.8]}
26... Ne6 {[%clk 0:00:30.8]} 27. Rad1 {[%clk 0:00:11.2]} 27... Nd4 {[%clk
0:00:31.3]} 28. Bf2 {[%clk 0:00:09.6]} 28... Rbd8 {[%clk 0:00:28.8]} 29. Be4
{[%clk 0:00:09.2]} 29... Nxe2+ {[%clk 0:00:27.4]} 30. Kf1 {[%clk 0:00:08.9]}
30... Nd4 {[%clk 0:00:28]} 31. Bxd4 {[%clk 0:00:05.5]} 31... cxd4 {[%clk
0:00:28.1]} 32. a5 {[%clk 0:00:05.6]} 32... b5 {[%clk 0:00:28.2]} 33. Bg6 {[%clk
0:00:03.8]} 33... Rhf8+ {[%clk 0:00:28]} 34. Kg2 {[%clk 0:00:02.7]} 34... Rf6
{[%clk 0:00:28.9]} 35. Be4 {[%clk 0:00:02]} 35... Rdf8 {[%clk 0:00:28.6]} 36.
Rd2 {[%clk 0:00:01.5]} 36... b4 {[%clk 0:00:23.5]} 0-1